[Event "Titled Tuesday Blitz July 05 Late 2022"]
[White "Domingo Nunez, Ruben"]
[Black "Aggelis, Nikolaos"]
[WhiteFideId "22245570"]
[BlackFideId "4213220"]
[WhiteElo "2373"]
[BlackElo "2154"]
[Result "1-0"]
[Round "11"]
[TimeControl "180+1"]
[Date "2022.07.05"]
[WhiteClock "0:01:38"]
[BlackClock "0:01:47"]

1. c4 {[%clk 0:03:00]}  c5 {[%clk 0:02:59]} 2. Nc3 {[%clk 0:03:01]}  Nc6 {[%clk 0:02:58]} 3. g3 {[%clk 0:03:02]}  g6 {[%clk 0:02:57]} 4. Bg2 {[%clk 0:03:02]}  Bg7 {[%clk 0:02:58]} 5. Nf3 {[%clk 0:03:03]}  e6 {[%clk 0:02:56]} 6. O-O {[%clk 0:03:04]}  Nge7 {[%clk 0:02:57]} 7. e3 {[%clk 0:03:04]}  O-O {[%clk 0:02:57]} 8. b3 {[%clk 0:03:03]}  d6 {[%clk 0:02:54]} 9. Bb2 {[%clk 0:03:03]}  a6 {[%clk 0:02:54]} 10. d4 {[%clk 0:03:03]}  cxd4 {[%clk 0:02:53]} 11. exd4 {[%clk 0:03:04]}  Rb8 {[%clk 0:02:52]} 12. Re1 {[%clk 0:03:04]}  b5 {[%clk 0:02:52]} 13. d5 {[%clk 0:03:02]}  Ne5 {[%clk 0:02:48]} 14. Nxe5 {[%clk 0:02:57]}  Bxe5 {[%clk 0:02:47]} 15. c5 {[%clk 0:02:53]}  Nxd5 {[%clk 0:02:36]} 16. Bxd5 {[%clk 0:02:36]}  exd5 {[%clk 0:02:35]} 17. Qxd5 {[%clk 0:02:37]}  Bb7 {[%clk 0:02:19]} 18. c6 {[%clk 0:02:16]}  Bc8 {[%clk 0:02:19]} 19. Rxe5 {[%clk 0:02:11]}  dxe5 {[%clk 0:02:00]} 20. Qxe5 {[%clk 0:02:12]}  Bh3 {[%clk 0:01:54]} 21. c7 {[%clk 0:02:00]}  Qd2 {[%clk 0:01:48]} 22. cxb8=Q {[%clk 0:01:49]}  Qxb2 {[%clk 0:01:47]} 23. Qh8+ {[%clk 0:01:38]} 1-0


[Site "https://www.chess.com"]

[Event "Titled Tuesday Blitz July 05 Late 2022"]
[White "Estrada Nieto, Julian"]
[Black "Mei, Austin"]
[WhiteFideId "5101018"]
[BlackFideId "30948479"]
[WhiteElo "2252"]
[BlackElo "1971"]
[Result "1-0"]
[Round "11"]
[TimeControl "180+1"]
[Date "2022.07.06"]
[WhiteClock "0:00:06"]
[BlackClock "0:00:20"]

1. e4 {[%clk 0:03:00]}  e5 {[%clk 0:02:59]} 2. Nf3 {[%clk 0:03:00]}  Nc6 {[%clk 0:02:58]} 3. Bb5 {[%clk 0:03:00]}  a6 {[%clk 0:02:58]} 4. Ba4 {[%clk 0:03:00]}  Nf6 {[%clk 0:02:57]} 5. O-O {[%clk 0:03:00]}  Nxe4 {[%clk 0:02:57]} 6. d4 {[%clk 0:03:00]}  b5 {[%clk 0:02:57]} 7. Bb3 {[%clk 0:02:59]}  d5 {[%clk 0:02:57]} 8. dxe5 {[%clk 0:03:00]}  Be6 {[%clk 0:02:58]} 9. Nbd2 {[%clk 0:03:00]}  Bc5 {[%clk 0:02:58]} 10. Nxe4 {[%clk 0:02:49]}  dxe4 {[%clk 0:02:58]} 11. Bxe6 {[%clk 0:02:45]}  fxe6 {[%clk 0:02:57]} 12. Ng5 {[%clk 0:02:36]}  e3 {[%clk 0:02:57]} 13. Qxd8+ {[%clk 0:02:33]}  Rxd8 {[%clk 0:02:58]} 14. Bxe3 {[%clk 0:02:31]}  Bxe3 {[%clk 0:02:57]} 15. fxe3 {[%clk 0:02:31]}  Nxe5 {[%clk 0:02:52]} 16. Nxe6 {[%clk 0:02:29]}  Rd7 {[%clk 0:02:53]} 17. Rad1 {[%clk 0:02:21]}  g6 {[%clk 0:02:34]} 18. b3 {[%clk 0:01:55]}  c6 {[%clk 0:01:50]} 19. h3 {[%clk 0:01:49]}  Ke7 {[%clk 0:01:47]} 20. Nc5 {[%clk 0:01:48]}  Rxd1 {[%clk 0:01:44]} 21. Rxd1 {[%clk 0:01:48]}  Ra8 {[%clk 0:01:43]} 22. Kf2 {[%clk 0:01:39]}  a5 {[%clk 0:01:43]} 23. Nd3 {[%clk 0:01:36]}  Nd7 {[%clk 0:01:41]} 24. Ke2 {[%clk 0:01:31]}  Rf8 {[%clk 0:01:37]} 25. Rf1 {[%clk 0:01:30]}  Re8 {[%clk 0:01:37]} 26. Rf4 {[%clk 0:01:25]}  Kd6 {[%clk 0:01:26]} 27. Rd4+ {[%clk 0:01:20]}  Kc7 {[%clk 0:01:26]} 28. Rf4 {[%clk 0:01:11]}  Re7 {[%clk 0:01:26]} 29. a4 {[%clk 0:01:10]}  Kb6 {[%clk 0:01:20]} 30. Kd2 {[%clk 0:01:05]}  Ka6 {[%clk 0:00:54]} 31. h4 {[%clk 0:01:05]}  Kb6 {[%clk 0:00:54]} 32. g4 {[%clk 0:01:04]}  Ka6 {[%clk 0:00:53]} 33. g5 {[%clk 0:01:04]}  Kb6 {[%clk 0:00:53]} 34. e4 {[%clk 0:00:42]}  bxa4 {[%clk 0:00:49]} 35. bxa4 {[%clk 0:00:42]}  c5 {[%clk 0:00:42]} 36. Kc3 {[%clk 0:00:41]}  Kc6 {[%clk 0:00:40]} 37. Nb2 {[%clk 0:00:23]}  Nb6 {[%clk 0:00:29]} 38. Rf6+ {[%clk 0:00:23]}  Kc7 {[%clk 0:00:29]} 39. Kd3 {[%clk 0:00:19]}  Rd7+ {[%clk 0:00:26]} 40. Ke3 {[%clk 0:00:17]}  Re7 {[%clk 0:00:27]} 41. Kd3 {[%clk 0:00:15]}  Rd7+ {[%clk 0:00:27]} 42. Ke3 {[%clk 0:00:13]}  Re7 {[%clk 0:00:28]} 43. Rf8 {[%clk 0:00:11]}  Nd5+ {[%clk 0:00:26]} 44. Kd3 {[%clk 0:00:09]}  Nb6 {[%clk 0:00:26]} 45. Ke3 {[%clk 0:00:09]}  Nd5+ {[%clk 0:00:25]} 46. Kd3 {[%clk 0:00:09]}  Nb6 {[%clk 0:00:26]} 47. Rf4 {[%clk 0:00:08]}  Rd7+ {[%clk 0:00:26]} 48. Kc3 {[%clk 0:00:06]}  Re7 {[%clk 0:00:27]} 49. Kb3 {[%clk 0:00:05]}  Kc6 {[%clk 0:00:24]} 50. Nc4 {[%clk 0:00:05]}  Nxc4 {[%clk 0:00:21]} 51. Kxc4 {[%clk 0:00:05]}  Re5 {[%clk 0:00:16]} 52. Rf6+ {[%clk 0:00:05]}  Kd7 {[%clk 0:00:16]} 53. Rf4 {[%clk 0:00:05]}  Kc6 {[%clk 0:00:16]} 54. Kd3 {[%clk 0:00:05]}  Kd7 {[%clk 0:00:13]} 55. Rf7+ {[%clk 0:00:05]}  Ke6 {[%clk 0:00:13]} 56. Rxh7 {[%clk 0:00:05]}  c4+ {[%clk 0:00:14]} 57. Kd4 {[%clk 0:00:04]}  c3 {[%clk 0:00:10]} 58. Rg7 {[%clk 0:00:05]}  Kd6 {[%clk 0:00:08]} 59. Rxg6+ {[%clk 0:00:05]}  Re6 {[%clk 0:00:09]} 60. Rxe6+ {[%clk 0:00:05]}  Kxe6 {[%clk 0:00:09]} 61. h5 {[%clk 0:00:05]}  Kf7 {[%clk 0:00:10]} 62. h6 {[%clk 0:00:06]}  Kg6 {[%clk 0:00:10]} 63. Kxc3 {[%clk 0:00:05]}  Kxg5 {[%clk 0:00:11]} 64. h7 {[%clk 0:00:05]}  Kh6 {[%clk 0:00:12]} 65. h8=Q+ {[%clk 0:00:06]}  Kg6 {[%clk 0:00:13]} 66. Qd4 {[%clk 0:00:05]}  Kg5 {[%clk 0:00:14]} 67. Qc5+ {[%clk 0:00:05]}  Kf4 {[%clk 0:00:15]} 68. Qxa5 {[%clk 0:00:05]}  Kf3 {[%clk 0:00:16]} 69. e5 {[%clk 0:00:05]}  Kf2 {[%clk 0:00:16]} 70. e6 {[%clk 0:00:06]}  Kg2 {[%clk 0:00:17]} 71. e7 {[%clk 0:00:06]}  Kf1 {[%clk 0:00:18]} 72. e8=Q {[%clk 0:00:06]}  Kf2 {[%clk 0:00:18]} 73. Qf5+ {[%clk 0:00:06]}  Kg3 {[%clk 0:00:19]} 74. Qeg6+ {[%clk 0:00:06]}  Kh4 {[%clk 0:00:20]} 75. Qfh5# {[%clk 0:00:06]} 1-0


[Site "https://www.chess.com"]

[Event "Titled Tuesday Blitz July 05 Late 2022"]
[White "Fajdetic, Hrvoje"]
[Black "Jian, Alex"]
[WhiteFideId "14501945"]
[BlackFideId "30901022"]
[WhiteElo "2172"]
[BlackElo "2095"]
[Result "0-1"]
[Round "11"]
[TimeControl "180+1"]
[Date "2022.07.06"]
[WhiteClock "0:00:16"]
[BlackClock "0:00:25"]

1. b3 {[%clk 0:02:47]}  Nf6 {[%clk 0:02:58]} 2. Bb2 {[%clk 0:02:48]}  d5 {[%clk 0:02:57]} 3. f4 {[%clk 0:02:47]}  c5 {[%clk 0:02:55]} 4. Nf3 {[%clk 0:02:48]}  g6 {[%clk 0:02:53]} 5. e3 {[%clk 0:02:49]}  Bg7 {[%clk 0:02:52]} 6. Be2 {[%clk 0:02:48]}  O-O {[%clk 0:02:52]} 7. O-O {[%clk 0:02:49]}  b6 {[%clk 0:02:47]} 8. Qe1 {[%clk 0:02:44]}  Bb7 {[%clk 0:02:47]} 9. d3 {[%clk 0:02:43]}  Nc6 {[%clk 0:02:40]} 10. Nbd2 {[%clk 0:02:41]}  Ng4 {[%clk 0:02:36]} 11. Bxg7 {[%clk 0:02:40]}  Kxg7 {[%clk 0:02:37]} 12. Bd1 {[%clk 0:02:39]}  d4 {[%clk 0:02:35]} 13. e4 {[%clk 0:02:19]}  Ne3 {[%clk 0:02:30]} 14. Rf2 {[%clk 0:02:18]}  Nb4 {[%clk 0:02:24]} 15. Nf1 {[%clk 0:02:15]}  Nxf1 {[%clk 0:02:11]} 16. Kxf1 {[%clk 0:02:09]}  f6 {[%clk 0:02:09]} 17. g4 {[%clk 0:02:06]}  Qc7 {[%clk 0:02:08]} 18. Qd2 {[%clk 0:02:01]}  Nc6 {[%clk 0:02:03]} 19. h4 {[%clk 0:01:55]}  b5 {[%clk 0:01:41]} 20. Kg2 {[%clk 0:01:28]}  Bc8 {[%clk 0:01:27]} 21. f5 {[%clk 0:01:26]}  Ne5 {[%clk 0:01:23]} 22. Nxe5 {[%clk 0:01:25]}  Qxe5 {[%clk 0:01:22]} 23. Qf4 {[%clk 0:01:25]}  Qxf4 {[%clk 0:01:19]} 24. Rxf4 {[%clk 0:01:26]}  e5 {[%clk 0:01:19]} 25. fxe6 {[%clk 0:01:19]}  Bxe6 {[%clk 0:01:20]} 26. a4 {[%clk 0:01:13]}  a6 {[%clk 0:01:15]} 27. Bf3 {[%clk 0:01:07]}  Rfc8 {[%clk 0:01:04]} 28. axb5 {[%clk 0:01:01]}  axb5 {[%clk 0:00:47]} 29. Rxa8 {[%clk 0:01:00]}  Rxa8 {[%clk 0:00:48]} 30. e5 {[%clk 0:00:46]}  fxe5 {[%clk 0:00:45]} 31. Rxd4 {[%clk 0:00:40]}  exd4 {[%clk 0:00:37]} 32. Bxa8 {[%clk 0:00:40]}  Bxg4 {[%clk 0:00:38]} 33. b4 {[%clk 0:00:34]}  cxb4 {[%clk 0:00:34]} 34. Bd5 {[%clk 0:00:33]}  Bd1 {[%clk 0:00:31]} 35. Bb3 {[%clk 0:00:31]}  Kf6 {[%clk 0:00:29]} 36. Kg3 {[%clk 0:00:32]}  Ke5 {[%clk 0:00:28]} 37. Kh3 {[%clk 0:00:26]}  Kf4 {[%clk 0:00:27]} 38. Kh2 {[%clk 0:00:18]}  Ke3 {[%clk 0:00:25]} 39. Kg3 {[%clk 0:00:16]}  Kd2 {[%clk 0:00:25]} 40. Bg8 {[%clk 0:00:16]}  h6 {[%clk 0:00:24]} 41. Bh7 {[%clk 0:00:16]}  g5 {[%clk 0:00:24]} 42. hxg5 {[%clk 0:00:16]}  hxg5 {[%clk 0:00:25]} 0-1


[Site "https://www.chess.com"]

[Event "Titled Tuesday Blitz July 05 Late 2022"]
[White "Freitag, Manfred"]
[Black "Samsonkin, Artiom"]
[WhiteFideId "1602004"]
[BlackFideId "13503111"]
[WhiteElo "2292"]
[BlackElo "2513"]
[Result "1/2-1/2"]
[Round "11"]
[TimeControl "180+1"]
[Date "2022.07.05"]
[WhiteClock "0:00:47"]
[BlackClock "0:00:11"]

1. e4 {[%clk 0:03:00]}  d5 {[%clk 0:02:53]} 2. exd5 {[%clk 0:03:00]}  Qxd5 {[%clk 0:02:54]} 3. Nc3 {[%clk 0:03:01]}  Qa5 {[%clk 0:02:54]} 4. d4 {[%clk 0:03:01]}  Nf6 {[%clk 0:02:54]} 5. Nf3 {[%clk 0:03:01]}  Bg4 {[%clk 0:02:55]} 6. h3 {[%clk 0:03:00]}  Bxf3 {[%clk 0:02:55]} 7. Qxf3 {[%clk 0:03:00]}  c6 {[%clk 0:02:55]} 8. Bc4 {[%clk 0:02:56]}  e6 {[%clk 0:02:54]} 9. O-O {[%clk 0:02:52]}  Nbd7 {[%clk 0:02:54]} 10. Bb3 {[%clk 0:02:48]}  Be7 {[%clk 0:02:42]} 11. Bd2 {[%clk 0:02:47]}  Qb6 {[%clk 0:02:35]} 12. Be3 {[%clk 0:02:47]}  Qa5 {[%clk 0:02:34]} 13. Rfd1 {[%clk 0:02:41]}  O-O {[%clk 0:02:33]} 14. Ne4 {[%clk 0:02:36]}  Nxe4 {[%clk 0:02:22]} 15. Qxe4 {[%clk 0:02:35]}  Nf6 {[%clk 0:02:21]} 16. Qd3 {[%clk 0:02:28]}  Rad8 {[%clk 0:02:21]} 17. c3 {[%clk 0:02:26]}  c5 {[%clk 0:01:59]} 18. Qe2 {[%clk 0:02:26]}  Qc7 {[%clk 0:01:57]} 19. dxc5 {[%clk 0:02:19]}  Bxc5 {[%clk 0:01:57]} 20. Bg5 {[%clk 0:02:18]}  Be7 {[%clk 0:01:53]} 21. Bc2 {[%clk 0:02:18]}  h6 {[%clk 0:01:38]} 22. Be3 {[%clk 0:02:14]}  Bc5 {[%clk 0:01:31]} 23. Qf3 {[%clk 0:01:52]}  Bxe3 {[%clk 0:01:14]} 24. Qxe3 {[%clk 0:01:51]}  b6 {[%clk 0:01:08]} 25. Bb3 {[%clk 0:01:48]}  Rxd1+ {[%clk 0:00:51]} 26. Rxd1 {[%clk 0:01:47]}  Rd8 {[%clk 0:00:51]} 27. Rd4 {[%clk 0:01:47]}  Rxd4 {[%clk 0:00:41]} 28. Qxd4 {[%clk 0:01:47]}  e5 {[%clk 0:00:36]} 29. Qd3 {[%clk 0:01:45]}  Qe7 {[%clk 0:00:31]} 30. a4 {[%clk 0:01:27]}  e4 {[%clk 0:00:28]} 31. Qd4 {[%clk 0:01:27]}  Nh5 {[%clk 0:00:20]} 32. Bd5 {[%clk 0:01:18]}  Nf4 {[%clk 0:00:18]} 33. Qxe4 {[%clk 0:01:10]}  Nxd5 {[%clk 0:00:18]} 34. Qxd5 {[%clk 0:01:10]}  Qe1+ {[%clk 0:00:18]} 35. Kh2 {[%clk 0:01:11]}  Qxf2 {[%clk 0:00:19]} 36. Qa8+ {[%clk 0:01:08]}  Kh7 {[%clk 0:00:20]} 37. Qxa7 {[%clk 0:01:05]}  Qxb2 {[%clk 0:00:16]} 38. Qxf7 {[%clk 0:00:59]}  Qxc3 {[%clk 0:00:17]} 39. Qf5+ {[%clk 0:00:58]}  Kh8 {[%clk 0:00:15]} 40. Qb5 {[%clk 0:00:54]}  Qc7+ {[%clk 0:00:12]} 41. Kg1 {[%clk 0:00:53]}  Qc1+ {[%clk 0:00:10]} 42. Kf2 {[%clk 0:00:53]}  Qf4+ {[%clk 0:00:11]} 43. Ke2 {[%clk 0:00:53]}  Qg3 {[%clk 0:00:10]} 44. Qe8+ {[%clk 0:00:49]}  Kh7 {[%clk 0:00:10]} 45. Qe4+ {[%clk 0:00:50]}  Kh8 {[%clk 0:00:10]} 46. Kd2 {[%clk 0:00:49]}  Qb3 {[%clk 0:00:09]} 47. Qe8+ {[%clk 0:00:47]}  Kh7 {[%clk 0:00:10]} 48. Qe4+ {[%clk 0:00:48]}  Kh8 {[%clk 0:00:10]} 49. Qe8+ {[%clk 0:00:48]}  Kh7 {[%clk 0:00:10]} 50. Qe4+ {[%clk 0:00:48]}  Kg8 {[%clk 0:00:11]} 51. Qe8+ {[%clk 0:00:47]}  Kh7 {[%clk 0:00:11]} 1/2-1/2


[Site "https://www.chess.com"]

[Event "Titled Tuesday Blitz July 05 Late 2022"]
[White "Gong, Patrick"]
[Black "Kamsky, Gata"]
[WhiteFideId "3222500"]
[BlackFideId "2000024"]
[WhiteElo "2103"]
[BlackElo "2645"]
[Result "0-1"]
[Round "11"]
[TimeControl "180+1"]
[Date "2022.07.05"]
[WhiteClock "0:00:22"]
[BlackClock "0:01:08"]

1. e4 {[%clk 0:03:00]}  e5 {[%clk 0:02:54]} 2. Nf3 {[%clk 0:02:58]}  Nc6 {[%clk 0:02:54]} 3. Nc3 {[%clk 0:02:58]}  Nf6 {[%clk 0:02:52]} 4. d4 {[%clk 0:02:59]}  exd4 {[%clk 0:02:51]} 5. Nxd4 {[%clk 0:03:00]}  Bb4 {[%clk 0:02:50]} 6. Nxc6 {[%clk 0:02:59]}  bxc6 {[%clk 0:02:49]} 7. Bd3 {[%clk 0:03:00]}  O-O {[%clk 0:02:45]} 8. O-O {[%clk 0:02:59]}  d5 {[%clk 0:02:45]} 9. exd5 {[%clk 0:02:59]}  cxd5 {[%clk 0:02:45]} 10. h3 {[%clk 0:02:58]}  c6 {[%clk 0:02:43]} 11. Qf3 {[%clk 0:02:58]}  a5 {[%clk 0:02:38]} 12. a3 {[%clk 0:02:56]}  Bd6 {[%clk 0:02:36]} 13. Re1 {[%clk 0:02:50]}  Rb8 {[%clk 0:02:31]} 14. Rb1 {[%clk 0:02:45]}  h6 {[%clk 0:02:25]} 15. Bf4 {[%clk 0:02:43]}  Be6 {[%clk 0:02:20]} 16. Ne2 {[%clk 0:02:07]}  c5 {[%clk 0:02:19]} 17. c4 {[%clk 0:02:05]}  dxc4 {[%clk 0:01:58]} 18. Bc2 {[%clk 0:02:04]}  Bd5 {[%clk 0:01:54]} 19. Qc3 {[%clk 0:01:53]}  Re8 {[%clk 0:01:52]} 20. Bxd6 {[%clk 0:01:39]}  Qxd6 {[%clk 0:01:51]} 21. Ng3 {[%clk 0:01:35]}  g6 {[%clk 0:01:37]} 22. Ba4 {[%clk 0:01:24]}  Rxe1+ {[%clk 0:01:34]} 23. Rxe1 {[%clk 0:01:25]}  Qf4 {[%clk 0:01:33]} 24. Rd1 {[%clk 0:01:11]}  h5 {[%clk 0:01:29]} 25. Nf1 {[%clk 0:01:05]}  Ne4 {[%clk 0:01:25]} 26. Qe3 {[%clk 0:01:04]}  Qxe3 {[%clk 0:01:23]} 27. Nxe3 {[%clk 0:01:05]}  Be6 {[%clk 0:01:23]} 28. f3 {[%clk 0:00:46]}  Ng3 {[%clk 0:01:18]} 29. Rd2 {[%clk 0:00:46]}  h4 {[%clk 0:01:18]} 30. Bc6 {[%clk 0:00:40]}  Rb3 {[%clk 0:01:12]} 31. Kf2 {[%clk 0:00:37]}  c3 {[%clk 0:01:12]} 32. bxc3 {[%clk 0:00:37]}  Rxa3 {[%clk 0:01:12]} 33. c4 {[%clk 0:00:34]}  Kg7 {[%clk 0:01:09]} 34. Bd5 {[%clk 0:00:27]}  Rxe3 {[%clk 0:01:08]} 35. Kxe3 {[%clk 0:00:22]}  Nf1+ {[%clk 0:01:08]} 0-1


[Site "https://www.chess.com"]

[Event "Titled Tuesday Blitz July 05 Late 2022"]
[White "Gubajdullin, Alexei"]
[Black "Cardoso Cardoso, Jose Gabriel"]
[WhiteFideId "4141202"]
[BlackFideId "4430492"]
[WhiteElo "2190"]
[BlackElo "2485"]
[Result "1-0"]
[Round "11"]
[TimeControl "180+1"]
[Date "2022.07.05"]
[WhiteClock "0:00:26"]
[BlackClock "0:00:32"]

1. c4 {[%clk 0:03:00]}  a6 {[%clk 0:02:47]} 2. g3 {[%clk 0:02:57]}  b5 {[%clk 0:02:46]} 3. Bg2 {[%clk 0:02:57]}  c6 {[%clk 0:02:42]} 4. d3 {[%clk 0:02:55]}  g6 {[%clk 0:02:41]} 5. Nf3 {[%clk 0:02:54]}  Bg7 {[%clk 0:02:41]} 6. O-O {[%clk 0:02:54]}  Nf6 {[%clk 0:02:41]} 7. a4 {[%clk 0:02:51]}  b4 {[%clk 0:02:38]} 8. a5 {[%clk 0:02:49]}  c5 {[%clk 0:02:37]} 9. Nbd2 {[%clk 0:02:49]}  Nc6 {[%clk 0:02:36]} 10. Nb3 {[%clk 0:02:48]}  d6 {[%clk 0:02:19]} 11. Ne5 {[%clk 0:02:47]}  Nxe5 {[%clk 0:02:05]} 12. Bxa8 {[%clk 0:02:46]}  h5 {[%clk 0:02:03]} 13. f4 {[%clk 0:02:38]}  Ned7 {[%clk 0:02:00]} 14. h3 {[%clk 0:02:32]}  O-O {[%clk 0:01:47]} 15. Bg2 {[%clk 0:02:31]}  Nb8 {[%clk 0:01:46]} 16. e4 {[%clk 0:02:24]}  Nfd7 {[%clk 0:01:42]} 17. Rf2 {[%clk 0:02:20]}  Nc6 {[%clk 0:01:40]} 18. Be3 {[%clk 0:02:18]}  Nd4 {[%clk 0:01:39]} 19. Bxd4 {[%clk 0:02:00]}  cxd4 {[%clk 0:01:40]} 20. Rc2 {[%clk 0:02:00]}  Nc5 {[%clk 0:01:37]} 21. Nxc5 {[%clk 0:01:55]}  dxc5 {[%clk 0:01:38]} 22. e5 {[%clk 0:01:55]}  Bh6 {[%clk 0:01:25]} 23. h4 {[%clk 0:01:55]}  Bg4 {[%clk 0:01:23]} 24. Bf3 {[%clk 0:01:54]}  Qd7 {[%clk 0:01:21]} 25. Bxg4 {[%clk 0:01:53]}  Qxg4 {[%clk 0:01:21]} 26. Qxg4 {[%clk 0:01:51]}  hxg4 {[%clk 0:01:22]} 27. h5 {[%clk 0:01:40]}  Kg7 {[%clk 0:01:14]} 28. hxg6 {[%clk 0:01:36]}  fxg6 {[%clk 0:01:13]} 29. Kg2 {[%clk 0:01:27]}  Rf5 {[%clk 0:01:12]} 30. Re2 {[%clk 0:01:15]}  e6 {[%clk 0:01:12]} 31. b3 {[%clk 0:01:10]}  Kg8 {[%clk 0:01:05]} 32. Rh1 {[%clk 0:01:08]}  Rh5 {[%clk 0:00:56]} 33. Rxh5 {[%clk 0:01:07]}  gxh5 {[%clk 0:00:56]} 34. f5 {[%clk 0:00:51]}  exf5 {[%clk 0:00:51]} 35. e6 {[%clk 0:00:50]}  Be3 {[%clk 0:00:50]} 36. Re1 {[%clk 0:00:50]}  h4 {[%clk 0:00:46]} 37. gxh4 {[%clk 0:00:49]}  f4 {[%clk 0:00:46]} 38. h5 {[%clk 0:00:46]}  Kf8 {[%clk 0:00:41]} 39. Rh1 {[%clk 0:00:28]}  f3+ {[%clk 0:00:31]} 40. Kg3 {[%clk 0:00:27]}  Ke7 {[%clk 0:00:32]} 41. h6 {[%clk 0:00:26]} 1-0


[Site "https://www.chess.com"]

[Event "Titled Tuesday Blitz July 05 Late 2022"]
[White "Hakobyan, Aram"]
[Black "Fedoseev, Vladimir"]
[WhiteFideId "13306677"]
[BlackFideId "24130737"]
[WhiteElo "2557"]
[BlackElo "2726"]
[Result "1-0"]
[Round "11"]
[TimeControl "180+1"]
[Date "2022.07.05"]
[WhiteClock "0:00:06"]
[BlackClock "0:00:06"]

1. e4 {[%clk 0:03:00]}  c5 {[%clk 0:02:58]} 2. Nf3 {[%clk 0:03:00]}  d6 {[%clk 0:02:57]} 3. Bb5+ {[%clk 0:03:00]}  Bd7 {[%clk 0:02:53]} 4. Bxd7+ {[%clk 0:03:00]}  Nxd7 {[%clk 0:02:53]} 5. O-O {[%clk 0:02:52]}  Ngf6 {[%clk 0:02:50]} 6. Qe2 {[%clk 0:02:53]}  e6 {[%clk 0:02:49]} 7. c3 {[%clk 0:02:52]}  Be7 {[%clk 0:02:43]} 8. d4 {[%clk 0:02:52]}  O-O {[%clk 0:02:44]} 9. e5 {[%clk 0:02:52]}  Ne8 {[%clk 0:02:43]} 10. Rd1 {[%clk 0:02:49]}  Qc7 {[%clk 0:02:34]} 11. Bf4 {[%clk 0:02:45]}  Nb6 {[%clk 0:02:27]} 12. Nbd2 {[%clk 0:02:43]}  Nd5 {[%clk 0:02:23]} 13. Bg3 {[%clk 0:02:43]}  cxd4 {[%clk 0:02:21]} 14. cxd4 {[%clk 0:02:42]}  Rd8 {[%clk 0:02:20]} 15. Rac1 {[%clk 0:02:40]}  Qa5 {[%clk 0:02:15]} 16. a3 {[%clk 0:02:33]}  dxe5 {[%clk 0:02:04]} 17. dxe5 {[%clk 0:02:33]}  Nec7 {[%clk 0:02:03]} 18. Ne4 {[%clk 0:02:32]}  Qb5 {[%clk 0:01:41]} 19. Qc2 {[%clk 0:02:21]}  h6 {[%clk 0:01:32]} 20. h3 {[%clk 0:02:21]}  Rd7 {[%clk 0:01:24]} 21. Nd6 {[%clk 0:02:21]}  Qa6 {[%clk 0:01:23]} 22. Nd4 {[%clk 0:02:17]}  Rfd8 {[%clk 0:01:18]} 23. Nb3 {[%clk 0:02:15]}  b6 {[%clk 0:01:10]} 24. Ne4 {[%clk 0:01:48]}  Nb5 {[%clk 0:00:51]} 25. Qe2 {[%clk 0:01:37]}  Qa4 {[%clk 0:00:45]} 26. Nbd2 {[%clk 0:01:35]}  Nd4 {[%clk 0:00:42]} 27. Qg4 {[%clk 0:01:35]}  b5 {[%clk 0:00:31]} 28. Re1 {[%clk 0:01:29]}  Nf5 {[%clk 0:00:26]} 29. Nf3 {[%clk 0:01:26]}  Kf8 {[%clk 0:00:19]} 30. Nh4 {[%clk 0:01:21]}  Nxg3 {[%clk 0:00:16]} 31. Qxg3 {[%clk 0:01:21]}  Qd4 {[%clk 0:00:16]} 32. Nf3 {[%clk 0:01:17]}  Qxb2 {[%clk 0:00:15]} 33. Nd6 {[%clk 0:01:17]}  Qxa3 {[%clk 0:00:15]} 34. Nxb5 {[%clk 0:01:16]}  Qa4 {[%clk 0:00:13]} 35. Nbd4 {[%clk 0:01:12]}  Bb4 {[%clk 0:00:14]} 36. Re4 {[%clk 0:01:05]}  Nc3 {[%clk 0:00:13]} 37. Rxc3 {[%clk 0:00:24]}  Qa1+ {[%clk 0:00:12]} 38. Kh2 {[%clk 0:00:25]}  Qxc3 {[%clk 0:00:12]} 39. Ne2 {[%clk 0:00:19]}  Qc2 {[%clk 0:00:12]} 40. Rxb4 {[%clk 0:00:17]}  Qxe2 {[%clk 0:00:12]} 41. Rg4 {[%clk 0:00:17]}  g6 {[%clk 0:00:09]} 42. Qf4 {[%clk 0:00:16]}  Kg7 {[%clk 0:00:09]} 43. Rh4 {[%clk 0:00:16]}  Rh8 {[%clk 0:00:07]} 44. Ng5 {[%clk 0:00:09]}  Qd3 {[%clk 0:00:06]} 45. Qf6+ {[%clk 0:00:10]}  Kg8 {[%clk 0:00:06]} 46. Rb4 {[%clk 0:00:06]} 1-0


[Site "https://www.chess.com"]

[Event "Titled Tuesday Blitz July 05 Late 2022"]
[White "Janaszak, Dawid"]
[Black "Navarrete Mendez, Gonzalo Alberto"]
[WhiteFideId "1119206"]
[BlackFideId "5106850"]
[WhiteElo "2199"]
[BlackElo "2261"]
[Result "0-1"]
[Round "11"]
[TimeControl "180+1"]
[Date "2022.07.05"]
[WhiteClock "0:00:19"]
[BlackClock "0:01:23"]

1. e4 {[%clk 0:03:00]}  e5 {[%clk 0:02:59]} 2. Bc4 {[%clk 0:02:58]}  Nf6 {[%clk 0:02:59]} 3. d3 {[%clk 0:02:55]}  Nc6 {[%clk 0:02:58]} 4. Nc3 {[%clk 0:02:54]}  Bc5 {[%clk 0:02:58]} 5. Na4 {[%clk 0:02:45]}  Be7 {[%clk 0:02:55]} 6. f4 {[%clk 0:02:45]}  d5 {[%clk 0:02:54]} 7. exd5 {[%clk 0:02:44]}  Nxd5 {[%clk 0:02:54]} 8. fxe5 {[%clk 0:02:38]}  Nxe5 {[%clk 0:02:52]} 9. Nf3 {[%clk 0:02:23]}  Bg4 {[%clk 0:02:49]} 10. Qe2 {[%clk 0:02:08]}  Nxf3+ {[%clk 0:02:46]} 11. gxf3 {[%clk 0:02:08]}  Be6 {[%clk 0:02:45]} 12. Be3 {[%clk 0:01:40]}  Bh4+ {[%clk 0:02:35]} 13. Kd1 {[%clk 0:01:36]}  O-O {[%clk 0:02:31]} 14. Bxd5 {[%clk 0:01:32]}  Bxd5 {[%clk 0:02:26]} 15. Nc3 {[%clk 0:01:32]}  Bc6 {[%clk 0:02:23]} 16. Rg1 {[%clk 0:01:21]}  Re8 {[%clk 0:02:18]} 17. Qg2 {[%clk 0:01:04]}  g6 {[%clk 0:02:08]} 18. Ne4 {[%clk 0:00:52]}  f5 {[%clk 0:02:03]} 19. Bg5 {[%clk 0:00:52]}  Bxg5 {[%clk 0:01:51]} 20. Nxg5 {[%clk 0:00:53]}  Qd4 {[%clk 0:01:39]} 21. Nxh7 {[%clk 0:00:24]}  Bxf3+ {[%clk 0:01:39]} 22. Qxf3 {[%clk 0:00:25]}  Qxg1+ {[%clk 0:01:39]} 23. Kd2 {[%clk 0:00:25]}  Qxa1 {[%clk 0:01:25]} 24. Ng5 {[%clk 0:00:19]}  Qe1# {[%clk 0:01:23]} 0-1


[Site "https://www.chess.com"]